bitfinex-derivatives/quotes_SOLF0:USTF0_20250520
["timestamp","ask_amount","ask_price","bid_price","bid_amount"]
[1747705845400,2.561e-05,169.58,169.56,5.8962]
[1747705848002,2.561e-05,169.58,169.57,5.8958]
[1747705848708,2.561e-05,169.58,169.55,0.04526228]
[1747705849806,2.561e-05,169.58,169.57,5.8958]
[1747705850811,63.12,169.65,169.62,5.8938]
[1747705851709,63.12,169.65,169.61,5.8943]
[1747705851912,63.16261856,169.65,169.61,0.04362615]
[1747705852306,0.04261856,169.65,169.61,0.04362615]
[1747705853307,0.04261856,169.65,169.62,6.26710084]
[1747705853511,0.04261856,169.65,169.64,5.8934]
[1747705854112,0.04261856,169.65,169.63,5.8937]
[1747705854313,0.04261856,169.65,169.61,0.04362615]
[1747705855313,5.93591856,169.65,169.61,0.04362615]
[1747705855807,5.8939,169.63,169.61,0.04362615]
[1747705856016,0.04261856,169.65,169.61,0.04362615]
[1747705856207,63.1,169.64,169.61,0.04362615]
[1747705856508,5.8937,169.63,169.61,0.04362615]
[1747705856716,63.1,169.64,169.61,0.04362615]
[1747705857616,5.8937,169.63,169.61,0.04362615]
[1747705858015,63.1,169.64,169.61,0.04362615]
[1747705860715,5.8939,169.63,169.61,0.04362615]
[1747705861013,63.1,169.64,169.61,0.04362615]
[1747705861712,5.8937,169.63,169.61,0.04362615]
[1747705862012,0.04261856,169.65,169.61,0.04362615]
[1747705862913,0.04261856,169.65,169.63,5.8935]
[1747705863116,0.04261856,169.65,169.62,6.26710084]
[1747705863318,572.86,169.71,169.63,2.0441]
[1747705863516,63.1,169.71,169.63,2.0441]
[1747705863815,5.8907,169.72,169.64,63.1]
[1747705864021,143.42362581,169.74,169.65,6.26710084]
[1747705864219,0.04396065,169.71,169.68,0.04273345]
[1747705864414,0.04396065,169.71,169.69,5.8914]
[1747705864616,0.04396065,169.71,169.68,0.04273345]
[1747705865321,5.8917,169.69,169.68,0.04273345]
[1747705865517,0.04396065,169.71,169.7,5.8913]
[1747705865912,0.04396065,169.71,169.68,0.04273345]
[1747705866111,63.02,169.7,169.68,0.04273345]
[1747705867825,68.9116,169.7,169.68,0.04273345]
[1747705868029,63.02,169.7,169.68,0.04273345]
[1747705869022,5.8917,169.69,169.68,0.04273345]
[1747705869816,63.02,169.7,169.68,0.04273345]
[1747705870126,0.04396065,169.71,169.68,0.04273345]
[1747705870314,0.04396065,169.71,169.69,5.8917]
[1747705870521,0.04396065,169.71,169.68,0.04273345]
[1747705871018,0.04396065,169.71,169.69,5.8917]
[1747705871625,0.04396065,169.71,169.68,5.93463345]
[1747705871823,0.04396065,169.71,169.68,0.04273345]
[1747705872027,5.8917,169.69,169.68,0.04273345]
[1747705875031,68.9117,169.69,169.68,0.04273345]
[1747705881933,68.9117,169.69,169.68,3.345e-05]
[1747705887534,63.02,169.69,169.68,3.345e-05]
[1747705887731,0.04396065,169.71,169.68,3.345e-05]
[1747705888635,16.7672623,169.76,169.68,3.345e-05]
[1747705889033,10.8779623,169.76,169.72,5.8905]
[1747705889532,10.8779623,169.76,169.72,5.92833344]
[1747705889832,10.92157838,169.76,169.72,0.03783344]
[1747705890331,5.8903,169.73,169.72,0.03783344]
[1747705890937,6.26710084,169.73,169.61,2.0592]
[1747705891240,6.26710084,169.7,169.59,2.04698836]
[1747705891428,5.8938,169.63,169.59,2.04698836]
[1747705891736,0.04092343,169.63,169.59,2.08695457]
[1747705893142,0.04092343,169.63,169.6,5.8947]
[1747705893830,0.04092343,169.63,169.59,5.93506621]
[1747705895641,0.04092343,169.63,169.59,0.03996621]
[1747705897640,5.8944,169.62,169.59,0.03996621]
[1747705898635,5.93482343,169.63,169.59,0.03996621]
[1747705900345,5.8942,169.62,169.59,0.03996621]
[1747705900643,0.04092343,169.63,169.59,0.03996621]
[1747705901545,5.8948,169.6,169.59,0.03996621]
[1747705901744,62.94,169.6,169.59,0.03996621]
[1747705901936,0.04092343,169.63,169.59,0.03996621]
[1747705902435,0.04092343,169.63,169.6,5.8947]
[1747705903045,0.04092343,169.63,169.61,5.8943]
[1747705903946,0.04092343,169.63,169.62,5.8941]
[1747705905146,62.94,169.67,169.65,5.8929]
[1747705905543,73.8179623,169.7,169.6,3.933]
[1747705905744,73.8179623,169.7,169.6,13.94452652]
[1747705905937,62.94,169.7,169.6,13.94452652]
[1747705906145,0.0439757,169.67,169.66,5.8927]
[1747705906335,0.04343017,169.68,169.65,0.04069049]
[1747705906849,0.04343017,169.68,169.65,5.93369049]
[1747705907049,62.98343017,169.68,169.65,0.04069049]
[1747705907441,5.8927,169.66,169.65,0.04069049]
[1747705908143,5.8924,169.67,169.65,0.04069049]
[1747705909155,5.8927,169.66,169.65,0.04069049]
[1747705912153,5.8924,169.67,169.65,0.04069049]
[1747705912354,0.04343017,169.68,169.65,0.04069049]
[1747705913543,0.04343017,169.68,169.65,5.93349049]
[1747705915948,5.93543017,169.68,169.65,0.04069049]
[1747705916451,0.04343017,169.68,169.65,0.04069049]
[1747705916651,5.8924,169.67,169.65,0.04069049]
[1747705916948,0.04343017,169.68,169.65,0.04069049]
[1747705917348,5.8924,169.67,169.65,0.04069049]
[1747705919773,0.04343017,169.68,169.65,0.04069049]
[1747705919774,5.8927,169.66,169.65,0.04069049]
[1747705921167,0.04343017,169.68,169.65,0.04069049]
[1747705921572,10.8779623,169.74,169.65,0.04069049]
[1747705921760,73.8179623,169.74,169.65,0.04069049]
[1747705922170,10.8779623,169.74,169.66,69.19599534]
[1747705922369,10.8779623,169.74,169.69,6.25599534]
[1747705922569,14.50394973,169.78,169.76,5.8889]
[1747705922764,14.50394973,169.78,169.75,0.04246622]
[1747705923170,0.04331067,169.79,169.75,0.04246622]
[1747705924476,5.93151067,169.79,169.75,5.93196622]
[1747705924678,0.04331067,169.79,169.75,0.04246622]
[1747705925677,5.8889,169.78,169.75,0.04246622]
[1747705926175,5.93161067,169.79,169.75,0.04246622]
[1747705926475,0.04331067,169.79,169.75,0.04246622]
[1747705926976,0.04331067,169.79,169.77,5.8888]
[1747705927476,0.04331067,169.79,169.75,0.04246622]
[1747705927777,0.04331067,169.79,169.75,62.86246622]
[1747705928777,0.04331067,169.79,169.77,5.8888]
[1747705929878,0.04331067,169.79,169.78,5.8886]
[1747705930882,0.04331067,169.79,169.77,5.8889]
[1747705931079,0.04331067,169.79,169.75,62.86246622]
[1747705931382,0.04331067,169.79,169.76,5.889]
[1747705931880,0.04331067,169.79,169.75,62.86246622]
[1747705932080,0.04331067,169.79,169.76,5.8889]
[1747705932980,0.04331067,169.79,169.75,68.75196622]
[1747705933986,0.04331067,169.79,169.75,5.93196622]
[1747705934584,5.93151067,169.79,169.75,5.93196622]
[1747705934985,0.04331067,169.79,169.75,5.93196622]
[1747705935188,0.04331067,169.79,169.75,0.04246622]
[1747705936486,0.04331067,169.79,169.78,5.8885]
[1747705937192,0.04331067,169.79,169.77,5.8888]
[1747705937987,0.04331067,169.79,169.76,5.8892]
[1747705938185,0.04331067,169.79,169.75,0.04246622]
[1747705938885,5.8892,169.77,169.75,0.04246622]
[1747705939497,5.93181067,169.79,169.75,0.04246622]
[1747705940487,5.93181067,169.79,169.75,5.93176622]
[1747705941179,5.8886,169.78,169.75,5.93176622]
[1747705941379,0.04331067,169.79,169.76,5.8891]
[1747705942383,0.04331067,169.79,169.75,0.04246622]
[1747705942784,0.04331067,169.79,169.75,5.93196622]
[1747705943689,5.93181067,169.79,169.75,5.93196622]
[1747705943885,0.04331067,169.79,169.75,0.04246622]
[1747705944692,0.04331067,169.79,169.78,5.8885]
[1747705946185,10.90461979,169.9,169.78,5.8885]
[1747705946186,571.86,169.93,169.78,5.88]
[1747705946394,571.86,169.93,169.77,6.24379275]
[1747705946395,573.7686,169.93,169.82,6.24379275]
[1747705946588,5.8838,169.92,169.83,62.8]
[1747705947194,0.04190668,169.89,169.86,0.03724506]
[1747705947491,0.04190668,169.89,169.88,5.8851]
[1747705948184,10.90461979,169.94,169.92,5.8835]
[1747705948588,10.90461979,169.94,169.88,62.8]
[1747705949093,10.90461979,169.94,169.89,0.04414632]
[1747705949694,5.884,169.91,169.89,0.04414632]
[1747705950691,5.8844,169.9,169.89,0.04414632]
[1747705951890,6.0411,169.92,169.89,0.04414632]
[1747705952587,5.8844,169.9,169.89,0.04414632]
[1747705954395,0.03820773,169.91,169.8,62.78]
[1747705954690,16.02060633,169.92,169.76,571.8]
[1747705954994,508.82,169.91,169.73,62.78]
[1747705955296,508.82,169.91,169.81,5.8874]
[1747705955498,0.04203583,169.88,169.84,0.04269136]
[1747705955694,5.886,169.86,169.84,0.04269136]
[1747705955993,62.78,169.87,169.84,0.04269136]
[1747705956888,5.8861,169.85,169.84,0.04269136]
[1747705957595,5.8859,169.86,169.84,0.04269136]
[1747705959094,0.04203583,169.88,169.84,0.04269136]
[1747705959695,0.04203583,169.88,169.87,5.8854]
[1747705961296,0.04203583,169.88,169.86,5.8857]
[1747705961595,0.04203583,169.88,169.84,0.04269136]
[1747705962295,0.04203583,169.88,169.87,5.8854]
[1747705963198,0.04203583,169.88,169.86,5.8857]
[1747705964099,0.04203583,169.88,169.87,5.8854]
[1747705971398,0.04203583,169.88,169.86,5.8857]
[1747705972102,0.04203583,169.88,169.87,5.8854]
[1747705974204,0.04203583,169.88,169.86,5.8857]
[1747705974791,0.04203583,169.88,169.84,0.04269136]
[1747705975207,0.04203583,169.88,169.87,5.8854]
[1747705978301,0.04203583,169.88,169.86,5.8857]
[1747705979710,0.04203583,169.88,169.84,5.92879136]
[1747705979903,0.04203583,169.88,169.84,0.04269136]
[1747705982912,0.04203583,169.88,169.87,5.8854]
[1747705983112,0.04203583,169.88,169.84,0.04269136]
[1747705983617,0.04203583,169.88,169.86,5.8857]
[1747705984119,0.04203583,169.88,169.85,5.886]
[1747705984721,5.92713583,169.88,169.84,5.92909136]
[1747705985814,0.04203583,169.88,169.84,0.04269136]
[1747705986119,62.70203583,169.88,169.84,0.04269136]
[1747705987218,5.8855,169.87,169.84,0.04269136]
[1747705987720,62.70203583,169.88,169.84,0.04269136]
[1747705988615,2.0681,169.87,169.84,0.04269136]
[1747705989221,5.8861,169.85,169.84,0.04269136]
[1747705989428,4.1474,169.87,169.76,62.6]
[1747705989627,4.1474,169.87,169.74,6.23618856]
[1747705989922,5.8878,169.81,169.76,5.8892]
[1747705990325,0.04160491,169.8,169.77,0.04535265]
[1747705991027,0.04160491,169.8,169.77,5.93415265]
[1747705991625,0.04160491,169.8,169.78,5.8885]
[1747705991820,0.04160491,169.8,169.77,0.04535265]
[1747705992028,0.04160491,169.8,169.77,6.28154121]
[1747705992326,0.04160491,169.8,169.79,5.8882]
[1747705994529,4.91e-06,169.8,169.79,5.8882]
[1747705994729,62.6,169.87,169.79,5.88]
[1747705995031,79.38911979,169.9,169.83,6.23618856]
[1747705995430,79.38911979,169.9,169.86,5.8857]
[1747705995631,79.43081938,169.9,169.86,5.92394114]
[1747705996331,73.54631938,169.9,169.87,5.8854]
[1747705996516,73.54631938,169.9,169.86,0.03824114]
[1747705996517,10.94631938,169.9,169.86,0.03824114]
[1747705996919,10.94631938,169.9,169.86,6.2744297]
[1747705997124,0.04169959,169.9,169.86,6.2744297]
[1747705997628,0.04169959,169.9,169.87,5.8851]
[1747705997931,0.04169959,169.9,169.86,6.2744297]
[1747705998232,0.04169959,169.9,169.87,5.8854]
[1747705998626,0.04169959,169.9,169.86,0.03824114]
[1747705999324,0.04169959,169.9,169.87,6.23618856]
[1747705999523,0.04169959,169.9,169.89,5.8847]
[1747706006334,0.04169959,169.9,169.87,5.8854]
[1747706006638,0.04169959,169.9,169.86,0.03824114]
[1747706007738,0.04169959,169.9,169.88,5.8848]
[1747706009449,0.04169959,169.9,169.87,5.8854]
[1747706009638,0.04169959,169.9,169.86,0.03824114]
[1747706010139,0.04169959,169.9,169.88,5.885]
[1747706010345,0.04169959,169.9,169.86,0.03824114]
[1747706011434,0.04169959,169.9,169.89,5.8847]
[1747706014847,62.58,170.01,169.95,5.8824]
[1747706015048,62.58,170.0,169.95,5.8824]
[1747706015653,62.58,170.0,169.96,0.04429172]
[1747706016143,5.8814,169.99,169.96,0.04429172]
[1747706017542,68.461,170.0,169.96,0.04429172]
[1747706017743,62.58,170.0,169.96,0.04429172]
[1747706018140,5.8815,169.99,169.96,0.04429172]
[1747706019754,5.8817,169.98,169.96,0.04429172]
[1747706020047,5.8785,170.05,169.96,0.04429172]
[1747706020242,62.5,170.15,169.97,68.73618856]
[1747706020445,6.23618856,170.13,170.04,0.04303247]
[1747706020643,12.06598856,170.14,170.07,0.04524668]
[1747706021450,5.8782,170.08,170.07,0.04524668]
[1747706022241,24.16886438,170.08,170.07,0.04524668]
[1747706022954,5.88,170.03,169.97,62.5]
[1747706023248,62.5,170.05,169.94,6.23618856]
[1747706023652,5.8806,170.02,169.94,6.23618856]
[1747706023950,0.04123876,170.0,169.96,0.0447758]
[1747706024144,0.04123876,170.0,169.96,5.9267758]
[1747706025346,5.92223876,170.0,169.96,0.0447758]
[1747706025550,0.04123876,170.0,169.96,0.0447758]
[1747706026442,0.04123876,170.0,169.96,5.9267758]
[1747706026650,0.04123876,170.0,169.96,0.0447758]
[1747706027849,0.04123876,170.0,169.97,5.8818]
[1747706028744,0.04123876,170.0,169.99,5.8813]
[1747706028945,62.48,170.07,169.98,6.23618856]
[1747706030051,62.48,170.07,170.02,5.88]
[1747706030550,62.48,170.07,170.01,0.04287276]
[1747706030751,62.48,170.07,170.03,5.8798]
[1747706031052,62.48,170.07,170.01,0.04287276]
[1747706031354,68.3586,170.07,170.02,5.88]
[1747706032149,62.48,170.07,170.03,5.8798]
[1747706032344,62.48,170.07,170.01,0.04287276]
[1747706034553,5.8795,170.05,170.01,0.04287276]
[1747706035251,62.48,170.07,170.01,0.04287276]
[1747706035453,68.3588,170.07,170.01,5.92337276]
[1747706035758,62.48,170.07,170.01,5.92337276]
[1747706036054,5.8791,170.06,170.01,5.92337276]
[1747706036352,5.8791,170.06,170.02,5.8802]
[1747706037948,62.48,170.07,170.02,5.8802]
[1747706038142,62.48,170.07,170.03,5.8798]
[1747706039152,68.3586,170.07,170.02,5.8802]
[1747706040254,5.8789,170.06,170.01,5.92347276]
[1747706040553,62.48,170.07,170.01,5.92347276]
[1747706040755,5.8793,170.05,170.01,0.04287276]
[1747706040947,62.48,170.07,170.01,0.04287276]
[1747706041353,68.3585,170.07,170.02,5.8799]
[1747706041650,68.3585,170.07,170.01,0.04287276]
[1747706042358,62.48,170.07,170.01,0.04287276]
[1747706042852,14.54930093,170.22,170.04,6.23618856]
[1747706043051,68.6121,170.21,170.11,6.23618856]
[1747706043354,14.54930093,170.22,170.17,5.8751]
[1747706044354,62.48,170.21,170.14,62.48]
[1747706044843,62.48,170.21,170.17,5.8747]
[1747706045048,62.48,170.21,170.17,0.04452304]
[1747706045560,62.48,170.21,170.18,5.8744]
[1747706045951,62.48,170.21,170.17,0.04452304]
[1747706046458,62.48,170.21,170.18,5.8746]
[1747706046656,62.46,170.24,170.18,5.8746]
[1747706046950,62.46,170.24,170.19,0.0390054]
[1747706047156,5.8731,170.23,170.19,0.0390054]
[1747706047355,62.46,170.24,170.19,5.9132054]
[1747706048346,62.46,170.24,170.19,0.0390054]
[1747706048754,62.46,170.24,170.19,5.9133054]
[1747706049056,62.46,170.24,170.19,0.0390054]
[1747706050154,62.46,170.24,170.19,5.9132054]
[1747706050353,62.46,170.24,170.19,0.0390054]
[1747706051260,62.46,170.24,170.19,5.9133054]
[1747706051561,62.46,170.24,170.19,0.0390054]
[1747706052259,66.4763,170.27,170.19,0.0390054]
[1747706052459,4.1163,170.27,170.19,0.0390054]
[1747706052663,2.086,170.27,170.19,0.0390054]
[1747706053960,5.8726,170.25,170.2,5.8737]
[1747706054164,2.086,170.27,170.19,0.0390054]
[1747706054351,64.333,170.31,170.19,0.0390054]
[1747706054547,64.333,170.31,170.23,0.0406981]
[1747706055869,70.2035,170.31,170.26,5.8717]
[1747706056161,62.34,170.34,170.27,0.04049893]
[1747706056362,68.2095,170.34,170.29,5.8709]
[1747706056560,64.3475,170.35,170.27,0.04049893]
[1747706056762,7.8766,170.35,170.27,0.04049893]
[1747706056957,1.9602,170.39,170.27,0.04049893]
[1747706057152,64.2802,170.39,170.31,0.041272]
[1747706057655,4.1388,170.4,170.31,0.041272]
[1747706057858,2.0567,170.4,170.31,0.041272]
[1747706058060,2.0567,170.4,170.36,5.8684]
[1747706058262,2.0567,170.4,170.36,0.04292183]
[1747706058957,5.8682,170.37,170.36,0.04292183]
[1747706059166,2.0567,170.4,170.36,0.04292183]
[1747706059855,62.3,170.39,170.3,62.3]
[1747706060052,62.3,170.39,170.29,5.8706]
[1747706060757,0.03736445,170.36,170.29,5.8706]
[1747706060957,0.03736445,170.36,170.32,0.03877166]
[1747706061860,5.8696,170.33,170.32,0.03877166]
[1747706062255,64.3417,170.35,170.32,0.03877166]
[1747706062457,5.90596445,170.36,170.32,0.03877166]
[1747706062657,0.03736445,170.36,170.32,0.03877166]
[1747706063156,5.90606445,170.36,170.32,0.03877166]
[1747706063463,5.90606445,170.36,170.32,5.90867166]
[1747706064161,0.03736445,170.36,170.32,5.90867166]
[1747706064564,0.03736445,170.36,170.32,0.03877166]
[1747706065262,0.03736445,170.36,170.33,5.8694]
[1747706065763,0.03736445,170.36,170.34,5.8692]
[1747706065962,0.03736445,170.36,170.32,0.03877166]
[1747706066961,0.03736445,170.36,170.33,5.8694]
[1747706069364,0.03736445,170.36,170.34,5.8692]
[1747706069867,0.03736445,170.36,170.35,5.8689]
[1747706070863,5.8663,170.43,170.34,62.28]
[1747706071165,4.0445,170.45,170.4,5.8671]
[1747706071662,5.8659,170.44,170.39,5.8675]
[1747706071964,4.0445,170.45,170.4,0.03735282]
[1747706072168,5.8665,170.42,170.41,0.03862458]
[1747706073260,5.8679,170.38,170.3,5.9229]
[1747706073466,62.28,170.42,170.31,62.28]
[1747706073467,2.0697,170.41,170.31,62.28]
[1747706074266,0.04317633,170.38,170.34,0.03897467]
[1747706074659,62.32317633,170.38,170.34,0.03897467]
[1747706075166,62.32317633,170.38,170.29,5.8709]
[1747706075365,1.9334,170.37,170.26,62.28]
[1747706075568,5.8692,170.35,170.26,62.28]
[1747706075969,1.9334,170.37,170.26,62.28]
[1747706076167,0.03903733,170.33,170.3,0.03911381]
[1747706076470,0.03903733,170.33,170.31,5.87]
[1747706077771,0.03903733,170.33,170.3,5.90971381]
[1747706078071,0.03903733,170.33,170.3,0.03911381]
[1747706078269,0.03903733,170.33,170.31,5.8702]
[1747706078462,0.03903733,170.33,170.3,0.03911381]
[1747706079472,0.03903733,170.33,170.31,5.8703]
[1747706079862,0.03903733,170.33,170.3,0.03911381]
[1747706080765,5.90863733,170.33,170.3,0.03911381]
[1747706082071,5.87,170.32,170.3,0.03911381]
[1747706082372,0.03903733,170.33,170.3,0.03911381]
[1747706083274,5.90873733,170.33,170.3,0.03911381]
[1747706083871,5.87,170.32,170.3,0.03911381]
[1747706084172,0.03903733,170.33,170.3,0.03911381]
[1747706084472,2.11613733,170.33,170.3,0.03911381]
[1747706085071,5.87,170.32,170.3,0.03911381]
[1747706089378,5.8703,170.31,170.3,0.03911381]
[1747706089975,5.8701,170.32,170.3,0.03911381]
[1747706090280,2.11613733,170.33,170.3,0.03911381]
[1747706091076,5.87,170.32,170.3,0.03911381]
[1747706091678,7.98583733,170.33,170.3,0.03911381]
[1747706092579,0.03903733,170.33,170.3,0.03911381]
[1747706093174,0.03903733,170.33,170.32,5.87]
[1747706093485,0.03903733,170.33,170.3,0.03911381]
[1747706094481,5.90873733,170.33,170.3,0.03911381]
[1747706096280,0.03903733,170.33,170.3,0.03911381]
[1747706096881,0.03903733,170.33,170.31,5.8701]
[1747706097791,0.03903733,170.33,170.3,0.03911381]
[1747706098183,5.8703,170.32,170.3,0.03911381]
[1747706099685,5.8703,170.31,170.3,0.03911381]
[1747706102375,68.1101,170.32,170.3,0.03911381]
[1747706102689,62.24,170.32,170.3,0.03911381]
[1747706102882,5.90873733,170.33,170.3,0.03911381]
[1747706103087,0.03903733,170.33,170.3,0.03911381]
[1747706103289,0.03903733,170.33,170.31,5.8703]
[1747706103680,0.03903733,170.33,170.3,0.03911381]
[1747706103880,0.03903733,170.33,170.3,5.90971381]
[1747706104188,0.03903733,170.33,170.3,0.03911381]
[1747706104383,0.03903733,170.33,170.32,5.87]
[1747706106789,62.24,170.4,170.31,6.98166532]
[1747706106993,62.24,170.4,170.31,69.22166532]
[1747706107288,64.3027,170.43,170.34,6.98166532]
[1747706107489,62.24,170.43,170.34,6.98166532]
[1747706107787,0.03897274,170.4,170.39,5.8676]
[1747706108291,0.03897274,170.4,170.37,0.04233495]
[1747706109690,0.03897274,170.4,170.37,5.91053495]
[1747706111295,0.03897274,170.4,170.38,5.8679]
[1747706111593,0.03897274,170.4,170.37,0.04233495]
[1747706112091,0.03897274,170.4,170.38,5.8676]
[1747706112286,0.03897274,170.4,170.37,0.04233495]
[1747706114196,0.03897274,170.4,170.39,5.8676]
[1747706115297,0.03897274,170.4,170.38,5.8679]
[1747706115996,0.03897274,170.4,170.37,5.91053495]
[1747706116405,0.03897274,170.4,170.37,0.04233495]
[1747706117697,0.03897274,170.4,170.38,5.8678]
[1747706118402,0.03897274,170.4,170.37,5.91053495]
[1747706118699,0.03897274,170.4,170.37,0.04233495]
[1747706119010,0.03897274,170.4,170.38,5.8679]
[1747706121105,0.03897274,170.4,170.37,5.91053495]
[1747706121506,0.03897274,170.4,170.38,5.8679]
[1747706121805,0.03897274,170.4,170.37,0.04233495]
[1747706125796,5.90627274,170.4,170.37,0.04233495]
[1747706126510,0.03897274,170.4,170.37,5.91043495]
[1747706127006,0.03897274,170.4,170.37,0.04233495]
[1747706127208,0.03897274,170.4,170.38,5.8676]
[1747706129212,0.03897274,170.4,170.37,0.04233495]
[1747706129707,5.8679,170.38,170.37,0.04233495]
[1747706131113,5.8697,170.33,170.29,2.036]
[1747706131310,62.16,170.35,170.25,71.23073655]
[1747706131609,62.16,170.34,170.25,64.24907123]
[1747706132116,0.03952509,170.31,170.28,0.04301778]
[1747706132308,5.91012509,170.31,170.28,0.04301778]
[1747706133114,0.03952509,170.31,170.28,0.04301778]
[1747706133605,0.03952509,170.31,170.29,5.8709]
[1747706133807,0.03952509,170.31,170.28,0.04301778]
[1747706134012,5.90982509,170.31,170.28,0.04301778]
[1747706134214,0.03952509,170.31,170.28,0.04301778]
[1747706134615,0.03952509,170.31,170.3,5.8707]
[1747706135012,0.03952509,170.31,170.28,0.04301778]
[1747706136819,0.03952509,170.31,170.29,5.871]
[1747706137521,0.03952509,170.31,170.3,5.8707]
[1747706138226,1.9705,170.4,170.34,5.869]
[1747706138521,62.18,170.39,170.3,62.18]
[1747706138920,62.18,170.39,170.34,5.869]
[1747706139121,62.18,170.39,170.3,62.18]
[1747706139325,0.03950891,170.36,170.33,0.04027905]
[1747706140726,5.8693,170.34,170.33,0.04027905]
[1747706143224,0.03950891,170.36,170.33,0.04027905]
[1747706144315,5.8692,170.35,170.33,0.04027905]
[1747706144521,0.03950891,170.36,170.33,0.04027905]
[1747706147032,5.90820891,170.36,170.33,0.04027905]
[1747706147729,5.8691,170.35,170.33,0.04027905]
[1747706147929,0.03950891,170.36,170.33,0.04027905]
[1747706149632,5.8693,170.34,170.33,0.04027905]
[1747706156323,68.0093,170.34,170.33,0.04027905]
[1747706156733,62.14,170.34,170.33,0.04027905]
[1747706158740,5.8693,170.34,170.33,0.04027905]
[1747706161735,5.8693,170.34,170.33,7.905e-05]
[1747706162538,5.8717,170.27,170.21,62.14]
[1747706163640,5.91255142,170.26,170.22,0.04364976]
[1747706164242,62.18025142,170.26,170.22,0.04364976]
[1747706164633,5.8731,170.23,170.22,4.976e-05]
[1747706164839,62.18025142,170.26,170.2,1.86495713]
[1747706164840,1.9324,170.25,170.2,1.86495713]
[1747706165646,1.9324,170.25,170.11,69.12166532]
[1747706165844,0.04165407,170.2,170.11,69.12166532]
[1747706166147,0.04165407,170.2,170.14,0.03815371]
[1747706166148,62.18165407,170.2,170.14,0.03815371]
[1747706166647,68.05605407,170.2,170.15,5.8758]
[1747706166847,0.04165407,170.2,170.14,7.01981903]
[1747706167750,0.04165407,170.2,170.19,5.8745]
[1747706168238,0.04165407,170.2,170.18,0.03723379]
[1747706171846,0.04165407,170.2,170.18,5.94973379]
[1747706172045,67.9721,170.26,170.22,5.8734]
[1747706172447,62.1,170.26,170.23,5.8729]
[1747706173258,62.14024216,170.26,170.24,5.8726]
[1747706173555,0.04024216,170.26,170.24,5.8726]
[1747706174458,0.04024216,170.26,170.23,5.91348779]
[1747706175252,0.04024216,170.26,170.24,5.8726]
[1747706175553,0.04024216,170.26,170.23,0.04048779]
[1747706175754,0.04024216,170.26,170.25,5.8724]
[1747706176261,0.04024216,170.26,170.24,5.8727]
[1747706176858,0.04024216,170.26,170.23,5.91358779]
[1747706180058,0.04024216,170.26,170.24,5.8727]
[1747706181265,0.04024216,170.26,170.25,5.8724]
[1747706182869,569.52,170.36,170.24,62.1]
[1747706183174,5.8694,170.34,170.25,4.066]
[1747706183359,569.52,170.36,170.3,5.8706]
[1747706183864,5.91015508,170.35,170.31,0.04188738]
[1747706184166,0.04115508,170.35,170.31,0.04188738]
[1747706184767,0.04115508,170.35,170.34,5.8693]
[1747706184965,0.04115508,170.35,170.31,0.04188738]
[1747706185967,62.1,170.34,170.31,0.04188738]
[1747706186765,5.8696,170.33,170.31,0.04188738]
[1747706187668,5.87,170.32,170.31,0.04188738]
[1747706187969,62.1,170.34,170.31,0.04188738]
[1747706188871,5.8699,170.33,170.31,0.04188738]
[1747706191367,5.87,170.32,170.31,0.04188738]
[1747706193274,67.9695,170.34,170.31,0.04188738]
[1747706194374,62.1,170.34,170.31,0.04188738]
[1747706195976,67.9694,170.34,170.31,0.04188738]
[1747706197982,62.1,170.34,170.31,5.91188738]
[1747706198465,62.1,170.34,170.31,0.04188738]
[1747706199981,62.1,170.34,170.31,5.91218738]
[1747706200783,67.9693,170.34,170.31,0.04188738]
[1747706201074,62.1,170.34,170.31,0.04188738]
[1747706201877,67.9694,170.34,170.31,0.04188738]
[1747706203082,5.91015508,170.35,170.31,0.04188738]
[1747706203681,5.91015508,170.35,170.31,5.91208738]
[1747706203879,0.04115508,170.35,170.31,0.04188738]
[1747706205882,62.02,170.34,170.31,0.04188738]
[1747706207184,0.04115508,170.35,170.31,0.04188738]
[1747706209087,5.8696,170.34,170.31,0.04188738]
[1747706212986,0.04115508,170.35,170.31,0.04188738]
[1747706213484,5.8694,170.34,170.31,0.04188738]
[1747706215289,5.91015508,170.35,170.31,0.04188738]
[1747706215477,0.04115508,170.35,170.31,0.04188738]
[1747706215982,0.04115508,170.35,170.32,5.8697]
[1747706217582,0.04115508,170.35,170.33,5.8696]
[1747706217787,0.04115508,170.35,170.31,62.06188738]